[Event "CCT Chessable Masters Play-In 2025"]
[Site "Online"]
[Date "2025.02.17"]
[Round "1.1"]
[White "Vachier-Lagrave, Maxime"]
[Black "Azarov, Sergei"]
[Result "1-0"]
[ECO "C55"]
[WhiteElo "2729"]
[BlackElo "2596"]
[PlyCount "83"]
[EventDate "2025.02.13"]
[EventType "swiss"]
[EventCountry "NET"]
[TimeControl "600"]
[WhiteClock "0:04:42"]
[BlackClock "0:02:41"]

1. e4 {[%emt 0:00:01]} e5 {[%emt 0:00:04]} 2. Nf3 {[%emt 0:00:01]} Nc6 {[%emt 0:00:03]} 3. Bb5 {[%emt 0:00:00]} a6 {[%emt 0:00:02]} 4. Ba4 {[%emt 0:00:01]} Nf6 {[%emt 0:00:06]} 5. O-O {[%emt 0:00:01]} Be7 {[%emt 0:00:02]} 6. d3 {[%emt 0:00:03]} b5 {[%emt 0:00:05]} 7. Bb3 {[%emt 0:00:00]} d6 {[%emt 0:00:01]} 8. c3 {[%emt 0:00:01]} O-O {[%emt 0:00:02]} 9. h3 {[%emt 0:00:01]} Na5 {[%emt 0:00:02]} 10. Bc2 {[%emt 0:00:01]} c5 {[%emt 0:00:01]} 11. d4 {[%emt 0:00:12]} Qc7 {[%emt 0:00:07]} 12. d5 {[%emt 0:00:08]} Nc4 {[%emt 0:00:17]} 13. b3 {[%emt 0:00:04]} Nb6 {[%emt 0:00:02]} 14. Be3 {[%emt 0:00:00]} Bb7 {[%emt 0:00:20]} 15. Nbd2 {[%emt 0:00:19]} Nbxd5 {[%emt 0:00:30]} 16. exd5 {[%emt 0:00:00]} Nxd5 {[%emt 0:00:00]} 17. c4 {[%emt 0:00:01]} Nc3 {[%emt 0:00:11]} 18. Qe1 {[%emt 0:00:13]} f5 {[%emt 0:00:06]} 19. Nb1 {[%emt 0:00:09]} Ne4 {[%emt 0:00:13]} 20. Bxe4 {[%emt 0:00:13]} Bxe4 {[%emt 0:00:07]} 21. Nc3 {[%emt 0:00:01]} Bc6 {[%emt 0:00:16]} 22. Rd1 {[%emt 0:00:18]} e4 {[%emt 0:00:28]} 23. Nh2 {[%emt 0:00:28]} f4 {[%emt 0:00:24]} 24. Bc1 {[%emt 0:00:01]} Bh4 {[%emt 0:00:10]} 25. Qd2 {[%emt 0:00:39]} Qb7 {[%emt 0:00:34]} 26. Nd5 {[%emt 0:00:05]} Rae8 {[%emt 0:00:11]} 27. Nxf4 {[%emt 0:00:13]} Bg5 {[%emt 0:00:16]} 28. Qxd6 {[%emt 0:00:02]} Rf6 {[%emt 0:00:04]} 29. Qxc5 {[%emt 0:00:05]} Bxf4 {[%emt 0:00:02]} 30. Ng4 {[%emt 0:00:06]} Rff8 {[%emt 0:00:16]} 31. Bxf4 {[%emt 0:00:03]} Rxf4 {[%emt 0:00:01]} 32. Rd6 {[%emt 0:00:31]} Bd7 {[%emt 0:00:01]} 33. Ne3 {[%emt 0:00:10]} Rff8 {[%emt 0:00:02]} 34. Qd5+ {[%emt 0:00:06]} Qxd5 {[%emt 0:00:02]} 35. cxd5 {[%emt 0:00:10]} Bc8 {[%emt 0:00:06]} 36. Rc1 {[%emt 0:00:00]} Rd8 {[%emt 0:00:05]} 37. Rb6 {[%emt 0:00:03]} h6 {[%emt 0:00:09]} 38. d6 {[%emt 0:00:22]} a5 {[%emt 0:00:13]} 39. Rc7 {[%emt 0:00:02]} b4 {[%emt 0:00:09]} 40. Nc4 {[%emt 0:00:14]} Be6 {[%emt 0:00:11]} 41. Ne5 {[%emt 0:00:09]} Rf6 {[%emt 0:01:18]} 42. Rbb7 {[%emt 0:00:01]} 1-0

[Event "CCT Chessable Masters Play-In 2025"]
[Site "Online"]
[Date "2025.02.17"]
[Round "1.2"]
[White "Kravtsiv, Martyn"]
[Black "Aronian, Levon"]
[Result "0-1"]
[ECO "C01"]
[WhiteElo "2598"]
[BlackElo "2745"]
[PlyCount "106"]
[EventDate "2025.02.13"]
[EventType "swiss"]
[EventCountry "NET"]
[TimeControl "600"]
[BlackClock "0:00:14"]

1. e4 {[%emt 0:00:02]} e6 {[%emt 0:00:02]} 2. d4 {[%emt 0:00:02]} d5 {[%emt 0:00:01]} 3. exd5 {[%emt 0:00:01]} exd5 {[%emt 0:00:01]} 4. Nf3 {[%emt 0:00:01]} Bd6 {[%emt 0:00:01]} 5. Bd3 {[%emt 0:00:03]} Nc6 {[%emt 0:00:22]} 6. O-O {[%emt 0:00:29]} Bg4 {[%emt 0:00:06]} 7. c3 {[%emt 0:00:15]} Nge7 {[%emt 0:00:04]} 8. b3 {[%emt 0:00:50]} Qd7 {[%emt 0:00:12]} 9. Na3 {[%emt 0:00:04]} a6 {[%emt 0:00:34]} 10. Nc2 {[%emt 0:00:33]} O-O {[%emt 0:00:14]} 11. Ne3 {[%emt 0:00:11]} Bh5 {[%emt 0:00:05]} 12. Ne5 {[%emt 0:00:29]} Nxe5 {[%emt 0:01:59]} 13. Bxh7+ {[%emt 0:00:09]} Kxh7 {[%emt 0:00:00]} 14. Qxh5+ {[%emt 0:00:02]} Kg8 {[%emt 0:00:01]} 15. dxe5 {[%emt 0:00:02]} Bc5 {[%emt 0:00:01]} 16. Rd1 {[%emt 0:00:46]} Qe6 {[%emt 0:00:46]} 17. Ng4 {[%emt 0:00:38]} c6 {[%emt 0:00:26]} 18. Rd3 {[%emt 0:00:27]} f5 {[%emt 0:00:36]} 19. Nh6+ {[%emt 0:01:36]} gxh6 {[%emt 0:00:03]} 20. Bxh6 {[%emt 0:00:01]} f4 {[%emt 0:00:05]} 21. Bxf8 {[%emt 0:00:41]} Rxf8 {[%emt 0:00:03]} 22. b4 {[%emt 0:00:01]} Bb6 {[%emt 0:00:23]} 23. Re1 {[%emt 0:00:12]} Qf5 {[%emt 0:00:28]} 24. Qxf5 {[%emt 0:00:23]} Rxf5 {[%emt 0:00:07]} 25. e6 {[%emt 0:00:12]} Kg7 {[%emt 0:00:39]} 26. Kf1 {[%emt 0:00:13]} Bc7 {[%emt 0:00:25]} 27. Rh3 {[%emt 0:00:11]} Be5 {[%emt 0:00:11]} 28. Ke2 {[%emt 0:00:13]} b5 {[%emt 0:00:47]} 29. Kd3 {[%emt 0:00:04]} Ng6 {[%emt 0:00:05]} 30. g4 {[%emt 0:00:26]} fxg3 {[%emt 0:00:09]} 31. hxg3 {[%emt 0:00:00]} Rxf2 {[%emt 0:00:27]} 32. e7 {[%emt 0:00:02]} Kf7 {[%emt 0:00:00]} 33. Rh6 {[%emt 0:00:09]} Rf3+ {[%emt 0:00:05]} 34. Kc2 {[%emt 0:00:09]} Rxc3+ {[%emt 0:00:02]} 35. Kb1 {[%emt 0:00:01]} Rxg3 {[%emt 0:00:03]} 36. Rxg6 {[%emt 0:00:06]} Rxg6 {[%emt 0:00:01]} 37. Rxe5 {[%emt 0:00:00]} Rg8 {[%emt 0:00:01]} 38. Re3 {[%emt 0:00:03]} Re8 {[%emt 0:00:01]} 39. Rc3 {[%emt 0:00:00]} Rc8 {[%emt 0:00:01]} 40. Re3 {[%emt 0:00:01]} Ke8 {[%emt 0:00:01]} 41. Kc2 {[%emt 0:00:03]} Kd7 {[%emt 0:00:00]} 42. Kd3 {[%emt 0:00:00]} Re8 {[%emt 0:00:01]} 43. Kd4 {[%emt 0:00:01]} Rxe7 {[%emt 0:00:01]} 44. Rg3 {[%emt 0:00:00]} Re4+ {[%emt 0:00:01]} 45. Kc5 {[%emt 0:00:00]} Rc4+ {[%emt 0:00:01]} 46. Kb6 {[%emt 0:00:01]} Rxb4 {[%emt 0:00:00]} 47. Rg7+ {[%emt 0:00:01]} Kd6 {[%emt 0:00:00]} 48. Rg6+ {[%emt 0:00:00]} Ke5 {[%emt 0:00:01]} 49. Rxc6 {[%emt 0:00:00]} Ra4 {[%emt 0:00:00]} 50. Rc2 {[%emt 0:00:01]} d4 {[%emt 0:00:01]} 51. Rd2 {[%emt 0:00:01]} Ke4 {[%emt 0:00:01]} 52. Kc5 {[%emt 0:00:01]} Ke3 {[%emt 0:00:00]} 53. Rd1 d3 {[%emt 0:00:01]} 0-1

[Event "CCT Chessable Masters Play-In 2025"]
[Site "Online"]
[Date "2025.02.17"]
[Round "1.3"]
[White "Lazavik, Denis"]
[Black "Rakhmanov, Aleksandr"]
[Result "1/2-1/2"]
[ECO "E61"]
[WhiteElo "2572"]
[BlackElo "2585"]
[PlyCount "98"]
[EventDate "2025.02.13"]
[EventType "swiss"]
[EventCountry "NET"]
[TimeControl "600"]
[WhiteClock "0:01:54"]
[BlackClock "0:02:27"]

1. d4 {[%emt 0:00:01]} Nf6 {[%emt 0:00:01]} 2. c4 {[%emt 0:00:02]} d6 {[%emt 0:00:01]} 3. Nf3 {[%emt 0:00:02]} g6 {[%emt 0:00:01]} 4. Nc3 {[%emt 0:00:03]} Bf5 {[%emt 0:00:01]} 5. Qb3 {[%emt 0:00:03]} Qc8 {[%emt 0:00:11]} 6. c5 {[%emt 0:00:23]} Bg7 {[%emt 0:00:02]} 7. Ng5 {[%emt 0:00:03]} O-O {[%emt 0:00:05]} 8. e4 {[%emt 0:00:01]} Bd7 {[%emt 0:00:03]} 9. Bc4 {[%emt 0:00:01]} e6 {[%emt 0:00:03]} 10. e5 {[%emt 0:00:05]} dxe5 {[%emt 0:00:19]} 11. dxe5 {[%emt 0:00:00]} Ng4 {[%emt 0:00:00]} 12. f4 {[%emt 0:00:01]} Nc6 {[%emt 0:00:15]} 13. Qd1 {[%emt 0:00:12]} Nh6 {[%emt 0:00:06]} 14. O-O {[%emt 0:00:05]} Rd8 {[%emt 0:00:12]} 15. Qe1 {[%emt 0:00:34]} Be8 {[%emt 0:00:02]} 16. h3 {[%emt 0:00:21]} Nd4 {[%emt 0:00:07]} 17. Qf2 {[%emt 0:00:06]} b5 {[%emt 0:00:10]} 18. Bd3 {[%emt 0:00:23]} Bc6 {[%emt 0:00:26]} 19. Be4 {[%emt 0:00:40]} Qb7 {[%emt 0:00:14]} 20. g4 {[%emt 0:00:37]} b4 {[%emt 0:00:09]} 21. Bxc6 {[%emt 0:00:02]} Qxc6 {[%emt 0:00:05]} 22. Nce4 {[%emt 0:00:01]} b3 {[%emt 0:00:23]} 23. axb3 {[%emt 0:00:56]} Nxb3 {[%emt 0:00:03]} 24. Ra3 {[%emt 0:00:00]} Rd3 {[%emt 0:00:16]} 25. Be3 {[%emt 0:00:05]} a5 {[%emt 0:00:20]} 26. Nc3 {[%emt 0:00:23]} a4 {[%emt 0:00:11]} 27. Nge4 {[%emt 0:00:05]} Kh8 {[%emt 0:00:25]} 28. Qe2 {[%emt 0:00:19]} Rdd8 {[%emt 0:00:57]} 29. Qc4 {[%emt 0:00:03]} Ng8 {[%emt 0:00:10]} 30. Rxa4 {[%emt 0:00:05]} Rxa4 {[%emt 0:00:09]} 31. Qxa4 {[%emt 0:00:01]} Qxa4 {[%emt 0:00:01]} 32. Nxa4 {[%emt 0:00:00]} Ne7 {[%emt 0:00:01]} 33. Nac3 {[%emt 0:00:10]} Kg8 {[%emt 0:00:21]} 34. Kf2 {[%emt 0:00:05]} Nc6 {[%emt 0:00:15]} 35. Rd1 {[%emt 0:00:09]} Rxd1 {[%emt 0:00:09]} 36. Nxd1 {[%emt 0:00:00]} Kf8 {[%emt 0:00:10]} 37. Ke2 {[%emt 0:00:03]} Nb4 {[%emt 0:00:01]} 38. Nd2 {[%emt 0:00:26]} Nc1+ {[%emt 0:00:07]} 39. Kf3 {[%emt 0:00:00]} Ke8 {[%emt 0:00:03]} 40. Ne4 {[%emt 0:00:19]} Nb3 {[%emt 0:00:04]} 41. h4 {[%emt 0:00:10]} Kd7 {[%emt 0:00:06]} 42. h5 {[%emt 0:00:01]} gxh5 {[%emt 0:00:04]} 43. gxh5 {[%emt 0:00:00]} h6 {[%emt 0:00:04]} 44. Ke2 {[%emt 0:00:19]} Kc6 {[%emt 0:00:10]} 45. Ndc3 {[%emt 0:00:00]} Bf8 {[%emt 0:00:17]} 46. Na4 {[%emt 0:00:39]} Kb5 {[%emt 0:00:09]} 47. Nac3+ {[%emt 0:00:00]} Kc6 {[%emt 0:00:03]} 48. Na4 {[%emt 0:00:01]} Kb5 {[%emt 0:00:01]} 49. Nac3+ {[%emt 0:00:01]} Kc6 {[%emt 0:00:00]} 1/2-1/2

[Event "CCT Chessable Masters Play-In 2025"]
[Site "Online"]
[Date "2025.02.17"]
[Round "1.4"]
[White "Warmerdam, Max"]
[Black "Aravindh, Chithambaram VR."]
[Result "0-1"]
[ECO "E69"]
[WhiteElo "2638"]
[BlackElo "2729"]
[PlyCount "86"]
[EventDate "2025.02.13"]
[EventType "swiss"]
[EventCountry "NET"]
[TimeControl "600"]
[WhiteClock "0:01:37"]
[BlackClock "0:02:36"]

1. Nf3 {[%emt 0:00:04]} Nf6 {[%emt 0:00:02]} 2. g3 {[%emt 0:00:01]} g6 {[%emt 0:00:00]} 3. Bg2 {[%emt 0:00:00]} Bg7 {[%emt 0:00:01]} 4. c4 {[%emt 0:00:00]} O-O {[%emt 0:00:00]} 5. Nc3 {[%emt 0:00:01]} d6 {[%emt 0:00:02]} 6. d4 {[%emt 0:00:00]} Nbd7 {[%emt 0:00:01]} 7. O-O {[%emt 0:00:01]} c6 {[%emt 0:00:02]} 8. e4 {[%emt 0:00:02]} Qc7 {[%emt 0:00:01]} 9. h3 {[%emt 0:00:02]} e5 {[%emt 0:00:02]} 10. Be3 {[%emt 0:00:01]} exd4 {[%emt 0:00:09]} 11. Nxd4 {[%emt 0:00:00]} Re8 {[%emt 0:00:01]} 12. Qc2 {[%emt 0:00:03]} Nc5 {[%emt 0:00:22]} 13. Rad1 {[%emt 0:00:11]} a6 {[%emt 0:00:05]} 14. b4 {[%emt 0:00:13]} Ne6 {[%emt 0:00:05]} 15. Nb3 {[%emt 0:00:01]} b5 {[%emt 0:00:21]} 16. cxb5 {[%emt 0:00:37]} axb5 {[%emt 0:00:00]} 17. Rc1 {[%emt 0:00:01]} Qe7 {[%emt 0:00:32]} 18. Rfd1 {[%emt 0:00:03]} h5 {[%emt 0:00:18]} 19. Qd2 {[%emt 0:00:09]} Rd8 {[%emt 0:00:14]} 20. Na5 {[%emt 0:00:13]} Bb7 {[%emt 0:00:48]} 21. a3 {[%emt 0:00:19]} Ra6 {[%emt 0:00:08]} 22. Ne2 {[%emt 0:00:11]} Ba8 {[%emt 0:00:07]} 23. Qd3 {[%emt 0:00:07]} Qe8 {[%emt 0:00:12]} 24. Rd2 {[%emt 0:00:11]} c5 {[%emt 0:00:11]} 25. Nc3 {[%emt 0:00:02]} Rb8 {[%emt 0:00:53]} 26. Rcd1 {[%emt 0:00:27]} Nd7 {[%emt 0:00:12]} 27. Ne2 {[%emt 0:00:01]} Ne5 {[%emt 0:00:09]} 28. Qc2 {[%emt 0:00:08]} Rc8 {[%emt 0:00:37]} 29. Qb1 {[%emt 0:00:09]} c4 {[%emt 0:00:17]} 30. Rxd6 {[%emt 0:00:26]} Rxd6 {[%emt 0:00:00]} 31. Rxd6 {[%emt 0:00:01]} Nd3 {[%emt 0:00:01]} 32. Qc2 {[%emt 0:00:08]} Ne1 {[%emt 0:00:14]} 33. Qc1 {[%emt 0:00:30]} Nxg2 {[%emt 0:00:02]} 34. Kxg2 {[%emt 0:00:00]} Bxe4+ {[%emt 0:00:01]} 35. Kh2 {[%emt 0:00:05]} Be5 {[%emt 0:00:06]} 36. Rb6 {[%emt 0:00:05]} h4 {[%emt 0:00:24]} 37. Nc3 {[%emt 0:00:06]} hxg3+ {[%emt 0:00:02]} 38. fxg3 {[%emt 0:00:01]} Ba8 {[%emt 0:00:09]} 39. Nxb5 {[%emt 0:00:12]} Qd7 {[%emt 0:00:01]} 40. Qd2 {[%emt 0:00:26]} Qd3 {[%emt 0:00:14]} 41. Qxd3 {[%emt 0:01:31]} cxd3 {[%emt 0:00:00]} 42. Nb3 {[%emt 0:01:05]} Rc2+ {[%emt 0:00:02]} 43. Nd2 {[%emt 0:00:29]} Rc1 {[%emt 0:00:16]} 0-1

[Event "CCT Chessable Masters Play-In 2025"]
[Site "Online"]
[Date "2025.02.17"]
[Round "1.5"]
[White "Artemiev, Vladislav"]
[Black "Alonso Rosell, Alvar"]
[Result "1-0"]
[ECO "A30"]
[WhiteElo "2691"]
[BlackElo "2535"]
[PlyCount "83"]
[EventDate "2025.02.13"]
[EventType "swiss"]
[EventCountry "NET"]
[TimeControl "600"]
[WhiteClock "0:03:20"]
[BlackClock "0:01:45"]

1. Nf3 {[%emt 0:00:02]} Nf6 {[%emt 0:00:02]} 2. c4 {[%emt 0:00:01]} c5 {[%emt 0:00:01]} 3. g3 {[%emt 0:00:03]} Nc6 {[%emt 0:00:01]} 4. Bg2 {[%emt 0:00:01]} d6 {[%emt 0:00:00]} 5. d4 {[%emt 0:00:02]} cxd4 {[%emt 0:00:00]} 6. Nxd4 {[%emt 0:00:00]} Bd7 {[%emt 0:00:01]} 7. b3 {[%emt 0:00:10]} g6 {[%emt 0:00:06]} 8. Bb2 {[%emt 0:00:02]} Bg7 {[%emt 0:00:00]} 9. Nc2 {[%emt 0:00:01]} h5 {[%emt 0:00:07]} 10. h3 {[%emt 0:00:02]} Qc8 {[%emt 0:00:08]} 11. Nc3 {[%emt 0:00:04]} O-O {[%emt 0:00:08]} 12. Rc1 {[%emt 0:00:03]} Re8 {[%emt 0:00:12]} 13. Ne3 {[%emt 0:00:02]} Qd8 {[%emt 0:00:14]} 14. Qd2 {[%emt 0:00:03]} Bh6 {[%emt 0:00:06]} 15. Ncd5 {[%emt 0:00:14]} Be6 {[%emt 0:01:03]} 16. Nf4 {[%emt 0:00:09]} Qd7 {[%emt 0:00:14]} 17. h4 {[%emt 0:00:12]} Bf5 {[%emt 0:00:18]} 18. Bxf6 {[%emt 0:00:14]} exf6 {[%emt 0:00:01]} 19. Ned5 {[%emt 0:00:07]} Bg7 {[%emt 0:00:04]} 20. O-O {[%emt 0:00:05]} Rad8 {[%emt 0:00:04]} 21. Rcd1 {[%emt 0:00:02]} Ne5 {[%emt 0:00:02]} 22. Rfe1 {[%emt 0:00:06]} Bg4 {[%emt 0:00:02]} 23. Ne3 {[%emt 0:00:05]} Be6 {[%emt 0:00:09]} 24. Qc2 {[%emt 0:00:22]} Bh6 {[%emt 0:00:06]} 25. Ned5 {[%emt 0:00:09]} Bxd5 {[%emt 0:00:05]} 26. Nxd5 {[%emt 0:00:01]} Bg7 {[%emt 0:00:07]} 27. Rd2 {[%emt 0:00:18]} Ng4 {[%emt 0:00:02]} 28. Red1 {[%emt 0:00:04]} g5 {[%emt 0:00:06]} 29. Bh3 {[%emt 0:00:16]} gxh4 {[%emt 0:00:17]} 30. f3 {[%emt 0:00:04]} f5 {[%emt 0:00:35]} 31. fxg4 {[%emt 0:00:01]} hxg4 {[%emt 0:00:06]} 32. Bg2 {[%emt 0:00:02]} Re5 {[%emt 0:00:03]} 33. gxh4 {[%emt 0:00:06]} Qe6 {[%emt 0:00:06]} 34. e3 {[%emt 0:00:18]} Qh6 {[%emt 0:00:04]} 35. Rf2 {[%emt 0:00:01]} Qxh4 {[%emt 0:00:20]} 36. Rxf5 {[%emt 0:00:02]} Rde8 {[%emt 0:00:03]} 37. Rdf1 {[%emt 0:00:35]} R8e6 {[%emt 0:00:08]} 38. Rxf7 {[%emt 0:00:52]} Rh6 {[%emt 0:00:07]} 39. Rxb7 {[%emt 0:00:37]} Qh2+ {[%emt 0:02:23]} 40. Kf2 {[%emt 0:00:01]} Rxd5 {[%emt 0:00:15]} 41. Rb8+ {[%emt 0:00:51]} Kf7 {[%emt 0:00:19]} 42. Ke1+ {[%emt 0:00:10]} 1-0

[Event "CCT Chessable Masters Play-In 2025"]
[Site "Online"]
[Date "2025.02.17"]
[Round "1.6"]
[White "Donchenko, Alexander"]
[Black "Keymer, Vincent"]
[Result "1/2-1/2"]
[ECO "A85"]
[WhiteElo "2632"]
[BlackElo "2731"]
[PlyCount "177"]
[EventDate "2025.02.13"]
[EventType "swiss"]
[EventCountry "NET"]
[TimeControl "600"]
[WhiteClock "0:00:31"]
[BlackClock "0:00:13"]

1. c4 {[%emt 0:00:01]} e6 {[%emt 0:00:02]} 2. Nc3 {[%emt 0:00:03]} Bb4 {[%emt 0:00:02]} 3. e3 {[%emt 0:00:13]} Bxc3 {[%emt 0:00:29]} 4. bxc3 {[%emt 0:00:00]} f5 {[%emt 0:00:00]} 5. d4 {[%emt 0:00:05]} Nf6 {[%emt 0:00:04]} 6. Bd3 {[%emt 0:00:01]} O-O {[%emt 0:00:07]} 7. Ne2 {[%emt 0:00:01]} d6 {[%emt 0:00:01]} 8. Qc2 {[%emt 0:00:04]} b6 {[%emt 0:00:17]} 9. a4 {[%emt 0:00:04]} Nc6 {[%emt 0:00:02]} 10. O-O {[%emt 0:00:09]} Na5 {[%emt 0:00:04]} 11. Ba3 {[%emt 0:00:10]} c5 {[%emt 0:00:01]} 12. Nf4 {[%emt 0:00:16]} e5 {[%emt 0:00:04]} 13. Nd5 {[%emt 0:00:10]} e4 {[%emt 0:00:06]} 14. Be2 {[%emt 0:00:05]} Ba6 {[%emt 0:00:02]} 15. dxc5 {[%emt 0:00:08]} bxc5 {[%emt 0:00:18]} 16. Rfd1 {[%emt 0:00:01]} Rb8 {[%emt 0:00:09]} 17. h3 {[%emt 0:00:19]} Nxd5 {[%emt 0:00:13]} 18. Rxd5 {[%emt 0:00:16]} Qf6 {[%emt 0:00:01]} 19. Rad1 {[%emt 0:00:03]} Rb6 {[%emt 0:00:01]} 20. Qd2 {[%emt 0:00:15]} Bxc4 {[%emt 0:00:20]} 21. Bxc4 {[%emt 0:00:02]} Nxc4 {[%emt 0:00:01]} 22. Qa2 {[%emt 0:00:01]} Qxc3 {[%emt 0:00:03]} 23. Rxd6 {[%emt 0:00:29]} Qb3 {[%emt 0:00:23]} 24. Qxb3 {[%emt 0:00:36]} Rxb3 {[%emt 0:00:00]} 25. Bxc5 {[%emt 0:00:00]} Nxd6 {[%emt 0:00:02]} 26. Rxd6 {[%emt 0:00:00]} Rb7 {[%emt 0:00:15]} 27. a5 {[%emt 0:00:08]} Rf6 {[%emt 0:00:10]} 28. Rd5 {[%emt 0:00:26]} g6 {[%emt 0:00:19]} 29. Bd4 {[%emt 0:00:04]} Rc6 {[%emt 0:00:20]} 30. g4 {[%emt 0:00:10]} fxg4 {[%emt 0:00:02]} 31. hxg4 {[%emt 0:00:00]} Kf7 {[%emt 0:00:02]} 32. Kg2 {[%emt 0:00:07]} a6 {[%emt 0:00:26]} 33. Kg3 {[%emt 0:00:07]} h6 {[%emt 0:00:09]} 34. Kf4 {[%emt 0:00:20]} Re6 {[%emt 0:00:03]} 35. Bb6 {[%emt 0:00:31]} Rf6+ {[%emt 0:00:08]} 36. Kg3 {[%emt 0:00:01]} g5 {[%emt 0:00:15]} 37. Rd4 {[%emt 0:00:11]} Re6 {[%emt 0:00:15]} 38. Rd8 {[%emt 0:00:01]} Kg6 {[%emt 0:00:17]} 39. Rg8+ {[%emt 0:00:16]} Rg7 {[%emt 0:00:02]} 40. Ra8 {[%emt 0:00:01]} Rf7 {[%emt 0:00:05]} 41. Bd4 {[%emt 0:00:06]} Rd7 {[%emt 0:00:18]} 42. Rg8+ {[%emt 0:00:08]} Kf7 {[%emt 0:00:01]} 43. Rg7+ {[%emt 0:00:10]} Ke8 {[%emt 0:00:01]} 44. Rg8+ {[%emt 0:00:00]} Ke7 {[%emt 0:00:00]} 45. Ra8 {[%emt 0:00:05]} Rc6 {[%emt 0:00:32]} 46. Rh8 {[%emt 0:00:29]} Rd5 {[%emt 0:00:15]} 47. Rh7+ {[%emt 0:00:04]} Ke8 {[%emt 0:00:01]} 48. Rh8+ {[%emt 0:00:04]} Kd7 {[%emt 0:00:01]} 49. Rh7+ {[%emt 0:00:01]} Kc8 {[%emt 0:00:02]} 50. Bb6 {[%emt 0:00:02]} Rf6 {[%emt 0:00:08]} 51. Rc7+ {[%emt 0:00:16]} Kb8 {[%emt 0:00:01]} 52. Rc2 {[%emt 0:00:01]} Rd7 {[%emt 0:00:05]} 53. Bd4 {[%emt 0:00:02]} Rf3+ {[%emt 0:00:03]} 54. Kg2 {[%emt 0:00:01]} Rdf7 {[%emt 0:00:05]} 55. Be5+ {[%emt 0:00:03]} Kb7 {[%emt 0:00:01]} 56. Bd4 {[%emt 0:00:00]} Rf8 {[%emt 0:00:04]} 57. Be5 {[%emt 0:00:02]} R3f7 {[%emt 0:00:02]} 58. Bg3 {[%emt 0:00:04]} Rc8 {[%emt 0:00:15]} 59. Rb2+ {[%emt 0:00:00]} Ka7 {[%emt 0:00:05]} 60. Rb6 {[%emt 0:00:02]} Rc5 {[%emt 0:00:05]} 61. Rxh6 {[%emt 0:00:07]} Rxa5 {[%emt 0:00:01]} 62. Re6 {[%emt 0:00:00]} Rb5 {[%emt 0:00:05]} 63. Rxe4 {[%emt 0:00:04]} a5 {[%emt 0:00:01]} 64. Be5 {[%emt 0:00:05]} Ka6 {[%emt 0:00:06]} 65. Bd4 {[%emt 0:00:02]} a4 {[%emt 0:00:01]} 66. Re8 {[%emt 0:00:04]} Rd5 {[%emt 0:00:21]} 67. Kg3 {[%emt 0:00:06]} Rb7 {[%emt 0:00:16]} 68. Ra8+ {[%emt 0:00:08]} Kb5 {[%emt 0:00:01]} 69. Bf6 {[%emt 0:00:00]} Kb4 {[%emt 0:00:04]} 70. f4 {[%emt 0:00:03]} Rd3 {[%emt 0:00:05]} 71. Kf3 {[%emt 0:00:06]} gxf4 {[%emt 0:00:01]} 72. Kxf4 {[%emt 0:00:00]} a3 {[%emt 0:00:03]} 73. g5 {[%emt 0:00:02]} Kb3 {[%emt 0:00:00]} 74. g6 {[%emt 0:00:02]} Rd6 {[%emt 0:00:14]} 75. Ke5 {[%emt 0:00:10]} Rdd7 {[%emt 0:00:03]} 76. e4 {[%emt 0:00:17]} a2 {[%emt 0:00:05]} 77. Kf5 {[%emt 0:00:02]} Rb5+ {[%emt 0:00:14]} 78. Ke6 {[%emt 0:00:15]} Rbb7 {[%emt 0:00:09]} 79. Kf5 {[%emt 0:00:06]} Rb5+ {[%emt 0:00:04]} 80. Kg4 {[%emt 0:00:03]} Rb6 {[%emt 0:00:02]} 81. g7 {[%emt 0:00:02]} Rxg7+ {[%emt 0:00:00]} 82. Bxg7 {[%emt 0:00:00]} Rg6+ {[%emt 0:00:01]} 83. Kf5 {[%emt 0:00:00]} Rxg7 {[%emt 0:00:00]} 84. e5 {[%emt 0:00:03]} Rb7 {[%emt 0:00:01]} 85. e6 {[%emt 0:00:02]} Kb2 {[%emt 0:00:01]} 86. Kf6 {[%emt 0:00:05]} a1=Q {[%emt 0:00:02]} 87. Rxa1 {[%emt 0:00:00]} Kxa1 {[%emt 0:00:00]} 88. e7 {[%emt 0:00:00]} Rxe7 {[%emt 0:00:01]} 89. Kxe7 {[%emt 0:00:00]} 1/2-1/2

[Event "CCT Chessable Masters Play-In 2025"]
[Site "Online"]
[Date "2025.02.17"]
[Round "1.7"]
[White "Abdusattorov, Nodirbek"]
[Black "Sjugirov, Sanan"]
[Result "0-1"]
[ECO "C55"]
[WhiteElo "2766"]
[BlackElo "2643"]
[PlyCount "116"]
[EventDate "2025.02.13"]
[EventType "swiss"]
[EventCountry "NET"]
[TimeControl "600"]
[WhiteClock "0:02:01"]
[BlackClock "0:02:05"]

1. e4 {[%emt 0:00:02]} e5 {[%emt 0:00:02]} 2. Nf3 {[%emt 0:00:03]} Nc6 {[%emt 0:00:01]} 3. Bc4 {[%emt 0:00:03]} Nf6 {[%emt 0:00:01]} 4. d3 {[%emt 0:00:03]} Be7 {[%emt 0:00:02]} 5. a4 {[%emt 0:00:03]} O-O {[%emt 0:00:03]} 6. O-O {[%emt 0:00:02]} d6 {[%emt 0:00:07]} 7. a5 {[%emt 0:00:04]} Rb8 {[%emt 0:00:05]} 8. Nc3 {[%emt 0:00:13]} Be6 {[%emt 0:00:06]} 9. Re1 {[%emt 0:00:20]} h6 {[%emt 0:00:10]} 10. Nd5 {[%emt 0:00:11]} Bxd5 {[%emt 0:00:02]} 11. exd5 {[%emt 0:00:11]} Nb4 {[%emt 0:00:01]} 12. d4 {[%emt 0:00:01]} e4 {[%emt 0:00:00]} 13. Nd2 {[%emt 0:00:01]} c6 {[%emt 0:00:01]} 14. dxc6 {[%emt 0:00:08]} d5 {[%emt 0:00:02]} 15. Bf1 {[%emt 0:00:20]} Nxc6 {[%emt 0:00:03]} 16. Nb3 {[%emt 0:00:01]} Bd6 {[%emt 0:00:25]} 17. g3 {[%emt 0:00:10]} Re8 {[%emt 0:00:03]} 18. a6 {[%emt 0:00:07]} b5 {[%emt 0:00:14]} 19. Be3 {[%emt 0:00:02]} Qc8 {[%emt 0:00:22]} 20. c3 {[%emt 0:00:06]} Ne7 {[%emt 0:00:37]} 21. Na5 {[%emt 0:00:08]} Rb6 {[%emt 0:00:21]} 22. Nb7 {[%emt 0:00:05]} Bb8 {[%emt 0:00:03]} 23. Ra5 {[%emt 0:00:13]} Nf5 {[%emt 0:00:36]} 24. Bxb5 {[%emt 0:00:17]} Re7 {[%emt 0:00:06]} 25. Nc5 {[%emt 0:00:08]} Nxe3 {[%emt 0:00:04]} 26. Rxe3 {[%emt 0:00:02]} h5 {[%emt 0:00:16]} 27. Na4 {[%emt 0:00:21]} Rd6 {[%emt 0:00:14]} 28. Be2 {[%emt 0:00:04]} h4 {[%emt 0:00:06]} 29. Nc5 {[%emt 0:00:07]} Rb6 {[%emt 0:00:06]} 30. b4 {[%emt 0:00:02]} hxg3 {[%emt 0:00:11]} 31. hxg3 {[%emt 0:00:00]} Qh3 {[%emt 0:00:06]} 32. Ra1 {[%emt 0:00:12]} g5 {[%emt 0:00:28]} 33. Qf1 {[%emt 0:00:05]} Qf5 {[%emt 0:00:05]} 34. Qg2 {[%emt 0:00:30]} Kg7 {[%emt 0:00:03]} 35. Rf1 {[%emt 0:00:05]} g4 {[%emt 0:00:11]} 36. c4 {[%emt 0:00:15]} Rxb4 {[%emt 0:00:03]} 37. Rc1 {[%emt 0:00:07]} Nh7 {[%emt 0:00:10]} 38. Qf1 {[%emt 0:01:35]} Ng5 {[%emt 0:00:04]} 39. Kg2 {[%emt 0:00:00]} Nf3 {[%emt 0:00:20]} 40. cxd5 {[%emt 0:00:07]} Rxd4 {[%emt 0:00:06]} 41. Rc4 {[%emt 0:00:06]} Rxc4 {[%emt 0:00:20]} 42. Bxc4 {[%emt 0:00:01]} Re8 {[%emt 0:00:02]} 43. Nxe4 {[%emt 0:00:49]} Rxe4 {[%emt 0:00:30]} 44. Bd3 {[%emt 0:00:10]} Qh5 {[%emt 0:00:07]} 45. Qh1 {[%emt 0:00:09]} Qxh1+ {[%emt 0:00:04]} 46. Kxh1 {[%emt 0:00:00]} Rxe3 {[%emt 0:00:06]} 47. fxe3 {[%emt 0:00:01]} Bxg3 {[%emt 0:00:02]} 48. Bf5 {[%emt 0:00:00]} Ne5 {[%emt 0:00:08]} 49. Kg2 {[%emt 0:00:01]} Bh4 {[%emt 0:00:02]} 50. e4 {[%emt 0:00:00]} Be7 {[%emt 0:00:08]} 51. Kg3 {[%emt 0:00:01]} Bd6 {[%emt 0:00:03]} 52. Kh4 {[%emt 0:00:01]} Kf6 {[%emt 0:00:03]} 53. Bc8 {[%emt 0:00:00]} Kg6 {[%emt 0:00:07]} 54. Bf5+ {[%emt 0:00:01]} Kh6 {[%emt 0:00:01]} 55. Bc8 {[%emt 0:00:00]} Be7+ {[%emt 0:00:02]} 56. Kg3 {[%emt 0:00:01]} Kg5 {[%emt 0:00:01]} 57. Bf5 {[%emt 0:00:00]} Bd6 {[%emt 0:00:01]} 58. Kg2 {[%emt 0:00:04]} Kf4 {[%emt 0:00:02]} 0-1